Cogmind - Beta 13 @@@ ROGUE MODE // 2024.06.07 @ 16:00:15 Player: Jason Result: Destroyed by D-53 Grenadier with Mini Grenade Launcher Performance ------------- Evolutions (1) 500 Regions Visited (4) 800 Robots Destroyed (44) 220 Value Destroyed (733) 733 Prototype IDs (0) 0 Alien Tech Used (0) 0 Bonus (-77) -77 TOTAL SCORE: 2176 Bonus ------- Follower Combat Kills 33 Friendly Fire -110 Cogmind --------- Core Integrity 0/400 Matter 237/300 Energy 100/100 System Corruption 1% Temperature Cool (0) Movement Core (350) Ox6 Location -9/Mines Parts ------- > --- POWER (1) -------- (None) > --- PROPULSION (4) --- (None) > --- UTILITY (2) ------ Large Storage Unit Sensor Array > --- WEAPON (2) ------- (None) > --- INVENTORY (15) --- Light Ion Engine Light Treads Heat Sink Huge Storage Unit High-capacity Matter Pod (200) Structural Scanner Seismic Detector Targeting Computer Propulsion Shielding Medium Armor Plating Medium Armor Plating Ion Cannon Assault Cannon Grenade Launcher Peak State ------------ > --- POWER ------------ Improved Ion Engine > --- PROPULSION ------- Light Treads Light Treads Light Treads Light Treads > --- UTILITY ---------- Large Storage Unit Sensor Array > --- WEAPON ----------- Spread Laser Ion Cannon > --- INVENTORY -------- Light Ion Engine Light Treads Wheel Heat Sink Huge Storage Unit High-capacity Matter Pod Structural Scanner Seismic Detector Targeting Computer Propulsion Shielding Medium Armor Plating Medium Armor Plating Ion Cannon Assault Cannon Grenade Launcher [Rating: 15] Favorites ----------- Power Ion Engine Engine Ion Engine Propulsion Light Treads Treads Light Treads Wheel Wheel Utility Large Storage Unit Device Sensor Array Storage Large Storage Unit Processor Signal Interpreter Protection Light Armor Plating Weapon Medium Laser Energy Gun Medium Laser Energy Cannon Ion Cannon Ballistic Gun Light Assault Rifle Launcher Grenade Launcher Special Weapon Mining Laser Build | -11 -10 -10 -9 -9 ------- Run | Yrd Mat Min Mat Min Slots Evolved 2 | . . . 2 . Power . | . . . . . Propulsion 2 | . . . 2 . Utility . | . . . . . Weapon . | . . . . . Parts Attached 34 | 8 13 1 8 4 Power 4 | 1 1 . . 2 Engine 4 | 1 1 . . 2 Core . | . . . . . Reactor . | . . . . . Propulsion 13 | 2 7 . 2 2 Treads 8 | 2 3 . 2 1 Leg . | . . . . . Wheel 5 | . 4 . . 1 Hover . | . . . . . Flight . | . . . . . Utility 8 | 3 4 1 . . Device 3 | 2 . 1 . . Storage 3 | 1 2 . . . Processor 1 | . 1 . . . Hackware . | . . . . . Protection 1 | . 1 . . . Artifact . | . . . . . Weapon 9 | 2 1 . 6 . Energy Gun 3 | 2 . . 1 . Energy Cannon 2 | . . . 2 . Ballistic Gun 2 | . 1 . 1 . Ballistic Cannon . | . . . . . Launcher 1 | . . . 1 . Special Weapon 1 | . . . 1 . Impact Weapon . | . . . . . Slashing Weapon . | . . . . . Piercing Weapon . | . . . . . Special Melee Weapon . | . . . . . Unidentified Prototypes . | . . . . . Parts Lost 12 | . 3 . . 9 Power 2 | . . . . 2 Propulsion 7 | . 2 . . 5 Utility . | . . . . . Weapon 3 | . 1 . . 2 Highest Loss Streak 8 | . 2 . . 8 To Critical Strikes . | . . . . . Average Slot Usage (%) 99 | . 99 100 100 98 Engine 12 | . 14 14 11 10 Treads 29 | . 16 28 44 42 Wheel 5 | . 11 . . . Device 8 | . 6 4 11 11 Storage 12 | . 14 14 11 11 Processor 4 | . 7 9 . . Energy Gun 14 | . 18 14 11 11 Energy Cannon 3 | . . . 5 11 Ballistic Gun 6 | . 9 14 3 . Naked Turns . | . . . . . Heaviest Build 91 | 15 91 29 35 37 Greatest Support 80 | 40 40 40 80 80 Greatest Overweight (x) 8 | 3 8 . . 6 Average Overweight (x) 1 | . 2 . . . Largest Inventory Capacity 25 | 8 25 15 15 15 Average Capacity 15 | 7 18 15 15 15 Most Carried 25 | 6 25 15 15 15 Average Carried 14 | 3 16 14 14 14 Final Capacity 15 | 8 15 15 15 15 Final Carried 15 | 5 15 14 15 14 Class Distribution -------------------- 100% | Mutant Dominant Class ---------------- Mutant | -10/Materials Mutant | -10/Mines Mutant | -9/Materials Mutant | -9/Mines Resources | -11 -10 -10 -9 -9 ----------- Run | Yrd Mat Min Mat Min Matter Collected 777 | 280 205 49 161 82 Remotely . | . . . . . Salvage Created 1071 | 223 307 49 164 328 Parts 81 | 18 28 6 8 21 Haulers Intercepted . | . . . . . Recyclers Shooed . | . . . . . Parts Field Recycled . | . . . . . Retrieved Matter . | . . . . . Parts Self-Destructed . | . . . . . Prevented . | . . . . . Kills | -11 -10 -10 -9 -9 ------- Run | Yrd Mat Min Mat Min Combat Hostiles Destroyed 31 | . 10 3 6 12 Guns 17 | . 7 3 3 4 Cannons 8 | . . . . 8 AOE 5 | . 2 . 3 . Classes Destroyed 8 | 3 4 . . 1 Worker 3 | 1 1 . . 1 Builder 1 | . 1 . . . Tunneler 6 | 5 . . . 1 Recycler 1 | 1 . . . . Watcher 1 | . 1 . . . Swarmer 18 | . 6 3 3 6 Grunt 13 | . 4 . 4 5 Duelist 1 | . . . . 1 Best Kill Streak 6 | 2 6 3 3 5 Combat Bots Only 5 | . 5 3 3 5 Max Kills in Single Turn 3 | 1 2 2 3 1 Gunslinging 1 | . 1 . . . Exploded 3 | . 2 . 3 . Melee . | . . . . . Uniques/NPCs Destroyed . | . . . . . Combat | -11 -10 -10 -9 -9 -------- Run | Yrd Mat Min Mat Min Hostile Shots Fired 139 | . 41 8 13 77 Missed 30 | . 15 2 2 11 Damage Taken 1915 | . 382 44 127 1362 Core 501 | . 63 19 12 407 Absorbed by Shields . | . . . . . Core Remaining (%) 83 | 100 . 67 . . Volleys Fired 102 | 18 24 2 20 38 Largest 2 | 2 2 2 2 2 Hottest 125 | 90 90 70 125 125 Shots Fired 183 | 36 48 4 32 63 Gun 130 | 36 48 4 17 25 Cannon 50 | . . . 12 38 Launcher 1 | . . . 1 . Special 2 | . . . 2 . Kinetic 25 | . 18 2 5 . Thermal 133 | 18 24 2 26 63 Explosive 1 | . . . 1 . Electromagnetic 24 | 18 6 . . . Robot Hit Streak 10 | 6 6 6 6 10 Robot Miss Streak 8 | 4 3 1 4 8 Penetration Max . | . . . . . Secondary Targets 2 | . 2 . . . Max Gunslinging Chain 1 | . 1 . . . Shots Hit Robots 102 | 17 30 3 15 37 Core Hits 82 | 8 16 3 20 35 Critical Kills . | . . . . . Critical Parts Destroyed . | . . . . . Critical Strikes 4 | . 3 1 . . Burn 3 | . 2 1 . . Corrupt 1 | . 1 . . . Melee Attacks . | . . . . . Impact . | . . . . . Slashing . | . . . . . Piercing . | . . . . . Sneak Attacks . | . . . . . Combat Hostiles . | . . . . . Follow-up Attacks . | . . . . . Damage Inflicted 1750 | 252 446 40 319 693 Guns 1012 | 252 317 40 160 243 Cannons 509 | . . . 72 437 Explosions 216 | . 129 . 87 . Melee . | . . . . . Ramming 13 | . . . . 13 Kinetic 138 | . 102 15 21 . Thermal 1308 | 85 307 25 211 680 Explosive 87 | . . . 87 . Electromagnetic 204 | 167 37 . . . Impact . | . . . . . Slashing . | . . . . . Piercing . | . . . . . Highest Corruption 1 | . . . 1 1 Average Corruption 1 | . . . 1 1 Corruption Purged . | . . . . . Corruption Blocked . | . . . . . Effects 13 | . . . 3 10 Message Errors 2 | . . . . 2 Matter Fused 2 | . . . 1 1 Heat Flow Errors 1 | . . . . 1 Energy Discharges 2 | . . . . 2 Data Loss (minor) 2 | . . . 2 . Data Loss (major) 2 | . . . . 2 Alerts 1 | . . . . 1 Weapon Failures 1 | . . . . 1 Overload Shots . | . . . . . Overflow Damage . | . . . . . Projectiles . | . . . . . Explosions . | . . . . . Melee . | . . . . . Knockbacks . | . . . . . Impact . | . . . . . Kinetic . | . . . . . Secondary . | . . . . . Self-Inflicted Damage 9 | . . . 9 . Shots 1 | . . . 1 . Rammed . | . . . . . Targets Rammed 1 | . . . . 1 Kicked . | . . . . . Crushed 1 | . . . . 1 Highest Temperature 516 | 180 256 40 180 516 Average Temperature 102 | 62 103 20 53 145 Received Heat Transfer 327 | . 156 . 45 126 Effects 7 | . 1 . . 6 Shutdowns 3 | . . . . 3 Energy Bleed 1 | . 1 . . . Matter Decay 2 | . . . . 2 Short Circuit 1 | . . . . 1 Siege Activations . | . . . . . Robots Corrupted . | . . . . . Combat Hostiles . | . . . . . Parts Fried . | . . . . . Impact Corruptions . | . . . . . Robots Melted 1 | . 1 . . . Combat Hostiles 1 | . 1 . . . Parts Melted 5 | . 5 . . . Heat Transferred 2607 | 259 916 148 286 998 Parts Sabotaged . | . . . . . Parts Stolen . | . . . . . Parts Stripped . | . . . . . Power Chain Reactions 1 | . 1 . . . Alert | -11 -10 -10 -9 -9 ------- Run | Yrd Mat Min Mat Min Peak Influence 308 | 35 308 108 217 212 Initial 41 | . 22 23 41 6 Average 95 | 15 113 107 79 103 Maximum Alert Level 1 | . 1 . 1 1 Low Security (%) 88 | 100 89 100 93 75 Level 1 11 | . 10 . 6 24 Level 2 . | . . . . . Level 3 . | . . . . . Level 4 . | . . . . . Level 5 . | . . . . . High Security . | . . . . . Max Security . | . . . . . Squads Dispatched 5 | . 2 . 2 1 Investigation 3 | . 1 . 1 1 Extermination . | . . . . . Reinforcement 2 | . 1 . 1 . Assault . | . . . . . Garrison . | . . . . . Intercept . | . . . . . Searches Triggered . | . . . . . Construction Impeded . | . . . . . Haulers Reinforced . | . . . . . Active Scanning Responses . | . . . . . Cargo Convoy Interrupts . | . . . . . Stealth | -11 -10 -10 -9 -9 --------- Run | Yrd Mat Min Mat Min Distress Signals 3 | . 3 . . . Communications Jammed . | . . . . . Distress Signals . | . . . . . Times Spotted 48 | . 17 3 11 17 Peak Tracking Total 6 | . 6 3 4 4 Tactical Retreats 1 | . 1 . . . Traps | -11 -10 -10 -9 -9 ------- Run | Yrd Mat Min Mat Min Traps Triggered 1 | . 1 . . . Indirectly . | . . . . . Trap Hack Attempts . | . . . . . Triggered . | . . . . . Disarmed . | . . . . . Reprogrammed . | . . . . . Reused . | . . . . . Traps Extracted . | . . . . . Installed . | . . . . . Triggered . | . . . . . Machines | -11 -10 -10 -9 -9 ---------- Run | Yrd Mat Min Mat Min Machines Disabled . | . . . . . Max in Single Turn . | . . . . . Machines Repaired . | . . . . . Machines Dismantled . | . . . . . Machines Sabotaged . | . . . . . Overloaded Fab Kills . | . . . . . Hacking | -11 -10 -10 -9 -9 --------- Run | Yrd Mat Min Mat Min Machines Accessed 11 | . 8 1 1 1 Terminals 9 | . 6 1 1 1 Fabricators . | . . . . . Repair Stations . | . . . . . Recycling Units 2 | . 2 . . . Scanalyzers . | . . . . . Garrison Access . | . . . . . Total Hacks 27 | . 16 4 3 4 Successful 8 | . 7 . . 1 Failed 19 | . 9 4 3 3 Catastrophic 4 | . 2 1 1 . Database Lockouts . | . . . . . Manual 22 | . 11 4 3 4 Terminals 23 | . 12 4 3 4 Fabricators . | . . . . . Repair Stations . | . . . . . Recycling Units 4 | . 4 . . . Scanalyzers . | . . . . . Garrison Access . | . . . . . Terminal Hacks 3 | . 3 . . . Alert Level 1 | . 1 . . . Locate Traps 1 | . 1 . . . Recall Investigation 1 | . 1 . . . Fabricator Hacks . | . . . . . Repair Station Hacks . | . . . . . Recycling Unit Hacks 2 | . 2 . . . Retrieve Components 2 | . 2 . . . Scanalyzer . | . . . . . Garrison Access Hacks . | . . . . . Unauthorized Hacks 3 | . 2 . . 1 Terminals 2 | . 1 . . 1 Botnet 2 | . 1 . . 1 Fabricators . | . . . . . Repair Stations . | . . . . . Recycling Units 1 | . 1 . . . Monitor 1 | . 1 . . . Scanalyzers . | . . . . . Garrison Access . | . . . . . Data Cores Recovered . | . . . . . Used . | . . . . . Hacking Detections 9 | . 6 1 1 1 Full Trace Events 4 | . 1 1 1 1 Feedback Events 1 | . . . 1 . Corruption 1 | . . . 1 . Feedback Blocked . | . . . . . Robot Schematics Acquired . | . . . . . Robots Built . | . . . . . Authchips . | . . . . . Time . | . . . . . Total Robot Build Rating . | . . . . . Part Schematics Acquired . | . . . . . Parts Built . | . . . . . Authchips . | . . . . . Time . | . . . . . Total Part Build Rating . | . . . . . Parts Repaired . | . . . . . Time . | . . . . . Parts Recycled . | . . . . . Recycled Matter . | . . . . . Retrieved Matter . | . . . . . Retrieved Components 4 | . 4 . . . Parts Scanalyzed . | . . . . . Part Schematics Acquired . | . . . . . Parts Damaged . | . . . . . Bothacking | -11 -10 -10 -9 -9 ------------ Run | Yrd Mat Min Mat Min Used RIF Installer . | . . . . . Robots Hacked . | . . . . . Non-combat . | . . . . . Combat . | . . . . . Robot Hacks Applied . | . . . . . Relay Couplers Released . | . . . . . Fabnet Peak Effective % . | . . . . . Robots Rewired . | . . . . . Allies Hacked . | . . . . . Hacks Repelled . | . . . . . Allies | -11 -10 -10 -9 -9 -------- Run | Yrd Mat Min Mat Min Total Allies 3 | . . 3 . . Largest Group 3 | . . 3 3 . Highest-Rated Group 40 | . . 40 40 . Highest-Rated Ally 16 | . . 16 16 . Total Orders . | . . . . . Ally Attacks 8 | . . . 8 . Total Damage 123 | . . . 123 . Kills 1 | . . . 1 . Allies Corrupted . | . . . . . Allies Melted . | . . . . . Intel | -11 -10 -10 -9 -9 ------- Run | Yrd Mat Min Mat Min Robot Analysis Total . | . . . . . Derelict Logs Recovered 2 | . . 2 . . Drone Launches . | . . . . . Drone Recoveries . | . . . . . Exploration | -11 -10 -10 -9 -9 ------------- Run | Yrd Mat Min Mat Min Turns Passed 3328 | 359 1346 370 450 803 Spaces Moved 1807 | 172 768 225 223 419 Core 17 | 16 . . . 1 Treads 1409 | 156 409 225 223 396 Legs . | . . . . . Wheels 381 | . 359 . . 22 Hover . | . . . . . Flight . | . . . . . Fastest Speed 50 | 50 95 160 160 110 Average Speed 157 | 158 156 160 160 157 Slowest Speed 350 | 200 200 160 160 350 Overloaded Moves . | . . . . . Propulsion Burnouts . | . . . . . Robots Hopped . | . . . . . Cave-ins Triggered . | . . . . . Exploration Rate (%) 46 | 10 88 43 26 64 Regions Visited 4 Branch Regions 2 Pre-discovered Areas 1 | . . 1 . . Known Exits Taken 2 | . 1 1 . . Unknown Exits Taken 2 | 1 . . 1 . Scrap Searched 1 | . . . . 1 Spaces Dug 12 | . . . 6 6 Terrain Destroyed 25 | . 2 . 13 10 Melee . | . . . . . Projectile 18 | . . . 8 10 AOE 7 | . 2 . 5 . Terrain Rammed . | . . . . . Walls Destroyed . | . . . . . Machines Disabled . | . . . . . Actions | -11 -10 -10 -9 -9 --------- Run | Yrd Mat Min Mat Min Total 2099 | 219 871 231 282 496 Wait 94 | 15 26 4 17 32 Move 1803 | 171 767 224 222 419 Hop . | . . . . . Pick Up 38 | 5 24 . 8 1 Fast Attach 12 | 8 3 . 1 . Attach 7 | . 3 . 2 2 Detach 3 | 1 2 . . . Swap 15 | . 7 1 5 2 Drop 24 | 1 15 . 7 1 Fire 102 | 18 24 2 20 38 Melee . | . . . . . Ram . | . . . . . Kick . | . . . . . Crush 1 | . . . . 1 Escape Stasis . | . . . . . Rewire . | . . . . . Trap . | . . . . . Miscellaneous . | . . . . . Route ------- -11/Scrapyard -10/Materials (discovered 3 exits: *Mat x2 / *Min) -10/Mines -9/Materials (discovered 3 exits: Mat / *Min / *Sto) -9/Mines (discovered 1 exit: *Mat) History --------- Turn | Location | Event 29 | -11/Scrapyard | Discovered new exit (range 15) 360 | -11/Scrapyard | Entered Materials 369 | -10/Materials | Build established: Mutant 908 | -10/Materials | Discovered new exit (range 16) 1050 | -10/Materials | Discovered new exit (range 16) 1069 | -10/Materials | Identified exit to Materials 1631 | -10/Materials | Discovered new exit (range 11) 1645 | -10/Materials | Identified exit to Mines 1706 | -10/Materials | Entered Mines 1781 | -10/Mines | Learned 4 Materials zone layouts 1793 | -10/Mines | Learned location of Storage (-9) 1896 | -10/Mines | Assisted by bots powering up and referring to "LRC-V3" 1900 | -10/Mines | Learned location of 1 exit from Materials 2052 | -10/Mines | Discovered exit to Materials (range 6) 2076 | -10/Mines | Entered Materials 2076 | -9/Materials | Accompanied by 3 allies 2076 | -9/Materials | Evolved 2 slots: Propulsion x2 2077 | -9/Materials | Identified exit to Storage 2078 | -9/Materials | Identified exit to Materials 2276 | -9/Materials | Lost 3 allies 2351 | -9/Materials | Discovered new exit (range 13) 2526 | -9/Materials | Entered Mines 2568 | -9/Mines | Discovered exit to Materials (range 15) 3239 | -9/Mines | Assembled infested the area 3316 | -9/Mines | Core integrity fell below 50% 3326 | -9/Mines | Core integrity fell below 20% 3329 | -9/Mines | Destroyed by D-53 Grenadier with Mini Grenade Launcher Last Messages --------------- 03256_ as-68046 powers down. 03260_ Crushed T-07 Excavator. 03260_ T-07 Excavator destroyed. 03261_ Acquired 1 matter. 03280_ C-30 ARC bursts open, deploying its payload. 03280_ D-53 Grenadier unfolds itself. 03282_ U-05 Engineer lays Concrete. 03284_ Imp. Ion Engine destroyed. 03284_ T-07 Excavator destroyed. 03285_ U-05 Engineer lays Concrete. 03289_ U-05 Engineer destroyed. 03291_ R-06 Scavenger destroyed. 03292_ Lgt. Treads destroyed. 03307_ System corrupted: Substantial component data lost. 03308_ Lgt. Treads destroyed. 03309_ The unstable cave ceiling collapses. 03321_ Spread Laser destroyed. 03324_ Wheel destroyed. 03325_ Ion Cannon destroyed. 03328_ The unstable cave ceiling collapses. Map ----- +----------------------------------------------------+ | | | | | | | | | | | | | | | | | | | | | ##?????????????????????????????????????????? | | # ##????????????????????????????????????????? | | ## ##???????????????????????????????????????? | | ##??????????????????????????????????????? | | #??????????????????????????????????????? | | #???????????########???????????????????? | | #???????????# #???????????????????? | | #???????????# """ #???????????????????? | | ##???????????# """ #???????????????????? | | ##????????????# """ #???????????????????? | | #?????????????# ####????????????????? | | #?????????????#### # ###??????????????? | | ##??????????????# ##?????????????? | | ##???????????????# # #####?????????? | | ##???????????????# ########??? | | ##??????????????# @ =%*!#??? | | ###????????????# #####%#??? | | ##???????????# ## ##???# #??? | | #???????????# ######????# #??? | | #???????????# ##?????????# #??? | | ##???????????# ####??????????# #??? | | # ##???????????# ##????????????# #??? | | ## ###????????# ##?????????##### ###? | | ?# ##???????## dd #????????# T#? | | ?# #####??### #????????# """ ##? | | ?# ### ##?# ###????????# """ #?? | | ?# #?## #?# #?????????# """ #?? | | ?# #??# #?# #?????????# #?? | | ?# #??## #?# ###?????????# """ #?? | | ?# #???# ### ##???????????# """ #?? | | ?# #???#%%###?## ##???????????# """ #?? | | ?# #???#! ##### ##??????????# #?? | | ?# ????# % ######?????########?? | | ?# ????# ##?????????????? | | ? ????########## #?????????????? | | ? ?????????????## ###???????????? | | ?? ???????????????## ##??????????? | | ???????????????????## ##?????????? | | ???????????????????## =% #?????????? | | ????????????????????## [ #?????????? | +----------------------------------------------------+ Best States ------------- Heat Dissipation 28 Energy Generation 12 Energy Capacity 265 Matter Stores 300 Matter Capacity 300 Sight Range 16 Robot Scan Range 14 Terrain Scan Range 16 Terrain Scan Density 10 Armor Coverage 150 Evasion (%) 41 Recoil Reduction 4 Item Schematics ----------------- None Robot Schematics ------------------ None Fabricated ------------ Nothing Alien Tech Used ----------------- None Achievements -------------- None Challenges ------------ None Game ------ Seed ThunderZionitePick Manual? 0 Play Time 00:32:08 Cumulative 94.6 hours Start 2024.06.07 @ 14:54:22 End 2024.06.07 @ 16:00:15 Sessions 1 Manual Loads 0 Difficulty Rogue Special Mode None Game No. 73 Rogue 73 Adventurer 0 Explorer 0 Win Type - Total 0 Types 0/0/0/0/0/0/0/0/0 Lore% 36 Gallery% 47 Achievement% 35 Wizard Run 0 Options --------- Layout 2 ASCII 1 Keyboard 1 Movement Arrows Keybinds 0 Fullscreen 0 Font 20/Terminus Map View 59x48 Zoom Use 0% Tactical HUD 1 Map Filters NONE Filters NONE Steam 1 RUN: 2c4c0f59-8e90-44c8-a570-869dd24301bd